bitfinex-derivatives/quotes_SOLF0:USTF0_20250109
["timestamp","ask_amount","ask_price","bid_price","bid_amount"]
[1736385344534,2.5256,198.02,197.98,2.526]
[1736385346034,2.9,198.01,197.91,12.26942003]
[1736385346637,2.5262,197.98,197.94,2.5265]
[1736385347737,2.5262,197.98,197.95,2.5265]
[1736385348236,2.9,198.01,197.91,12.26942003]
[1736385349137,2.9,198.01,197.98,2.526]
[1736385351739,2.5256,198.02,197.91,12.26942003]
[1736385351940,2.5256,198.02,197.99,2.5259]
[1736385354244,2.5256,198.02,197.94,12.26942003]
[1736385354245,2.9,198.03,198.0,2.5257]
[1736385355144,2.9,198.03,198.01,2.5257]
[1736385355445,2.9,198.03,197.96,1.5845]
[1736385356036,2.9,198.03,197.99,2.5259]
[1736385356445,5.4255,198.03,197.99,2.5259]
[1736385357146,2.9,198.03,198.0,2.5258]
[1736385359140,5.4252,198.05,198.01,2.5256]
[1736385359945,5.4252,198.05,198.02,2.5256]
[1736385360649,5.4252,198.05,197.96,13.85392003]
[1736385361051,2.5255,198.03,197.99,2.5259]
[1736385361251,2.9,198.05,197.99,2.5259]
[1736385363651,2.5257,198.01,197.98,2.5261]
[1736385363847,2.9,198.0,197.9,13.85212003]
[1736385364057,2.9,197.99,197.9,13.85212003]
[1736385364252,2.5261,197.98,197.94,2.5265]
[1736385364553,2.9,197.99,197.9,13.85212003]
[1736385364748,5.4261,197.99,197.94,2.5265]
[1736385364954,2.9,197.99,197.9,13.85212003]
[1736385366051,2.5262,197.98,197.94,2.5265]
[1736385366554,2.5262,197.98,197.9,13.85212003]
[1736385366555,2.9,197.99,197.9,13.85212003]
[1736385366752,5.426,197.99,197.95,2.5265]
[1736385368853,2.5262,197.98,197.93,2.5266]
[1736385369157,2.9,197.99,197.93,2.5266]
[1736385369458,2.9,197.99,197.9,1.5827]
[1736385369956,2.9,197.99,197.96,2.5263]
[1736385370556,2.92,197.98,197.96,2.5263]
[1736385372858,2.92,197.98,197.97,2.5262]
[1736385373062,12.26942003,198.06,197.93,12.26942003]
[1736385373256,2.92,198.05,197.96,12.26942003]
[1736385373763,2.92,198.04,197.96,12.26942003]
[1736385374761,5.4453,198.04,197.96,12.26942003]
[1736385375764,5.4453,198.04,197.99,2.5259]
[1736385376059,2.5256,198.03,197.99,2.5259]
[1736385377660,2.5257,198.02,197.97,2.5261]
[1736385378063,2.5257,198.02,197.93,12.26942003]
[1736385378867,2.5257,198.02,197.91,2.92]
[1736385378868,2.5259,198.0,197.96,2.5263]
[1736385379166,2.92,197.99,197.96,2.5263]
[1736385381461,2.92,197.99,197.97,2.5262]
[1736385382168,2.5257,198.01,197.97,2.5262]
[1736385382363,5.4457,198.01,197.97,2.5262]
[1736385383863,2.92,198.01,198.0,2.5258]
[1736385384067,12.26942003,198.06,197.96,12.26942003]
[1736385384068,2.92,198.03,197.96,12.26942003]
[1736385384267,12.26942003,198.06,197.96,12.26942003]
[1736385384471,2.92,198.05,197.96,12.26942003]
[1736385384672,2.92,198.05,197.97,1.5473]
[1736385385065,22.18797826,198.09,197.97,1.5473]
[1736385385270,22.18797826,198.09,197.99,12.26942003]
[1736385385465,8.43225823,198.09,197.99,12.26942003]
[1736385385767,2.92,198.08,198.06,2.5251]
[1736385385971,8.43225823,198.09,198.02,12.26942003]
[1736385386163,2.94,198.1,198.02,12.26942003]
[1736385386364,2.94,198.11,198.02,12.26942003]
[1736385386960,2.94,198.11,198.08,2.5248]
[1736385387163,2.5242,198.13,198.08,2.5248]
[1736385387360,2.92,198.12,198.02,12.26942003]
[1736385387564,2.92,198.12,198.09,2.5246]
[1736385387870,2.5241,198.14,198.05,12.26942003]
[1736385387871,2.92,198.14,198.05,12.26942003]
[1736385388170,2.92,198.14,198.06,1.4619]
[1736385388668,5.4441,198.14,198.09,2.5246]
[1736385390977,2.92,198.14,198.1,2.5245]
[1736385392576,2.5239,198.15,198.1,2.5245]
[1736385392777,2.92,198.14,198.1,2.5245]
[1736385392976,5.4441,198.14,198.1,2.5245]
[1736385394281,5.4441,198.14,198.06,3.0627]
[1736385394282,2.92,198.14,198.06,3.0627]
[1736385394476,12.26942003,198.12,198.02,12.26942003]
[1736385394673,12.26942003,198.12,197.99,12.26942003]
[1736385395379,2.5249,198.08,198.03,2.5253]
[1736385395682,2.92,198.07,197.99,12.26942003]
[1736385396679,2.92,198.07,198.03,2.5253]
[1736385397780,2.92,198.07,198.04,2.5253]
[1736385399184,2.5245,198.11,197.99,12.26942003]
[1736385399390,8.39403787,198.17,198.02,12.26942003]
[1736385399691,5.4438,198.16,198.12,2.5243]
[1736385400684,2.5239,198.15,198.1,2.5245]
[1736385401084,2.5239,198.15,198.11,2.5244]
[1736385401777,2.5239,198.15,198.08,2.5248]
[1736385401988,2.5239,198.15,198.02,12.26942003]
[1736385402376,2.5239,198.15,198.1,2.5245]
[1736385402990,2.5239,198.15,198.11,2.5244]
[1736385403287,2.92,198.16,198.05,12.26942003]
[1736385403489,2.5241,198.14,198.02,12.26942003]
[1736385403685,2.92,198.16,198.02,12.26942003]
[1736385404388,12.26942003,198.12,198.02,12.26942003]
[1736385404587,2.94,198.11,198.02,12.26942003]
[1736385404787,2.94,198.11,198.07,2.5248]
[1736385405188,2.94,198.11,198.02,12.26942003]
[1736385406188,2.94,198.11,198.1,2.5246]
[1736385406391,2.5242,198.14,198.1,2.5246]
[1736385406583,2.94,198.13,198.1,2.5246]
[1736385407987,2.94,198.12,198.1,2.5246]
[1736385408487,2.94,198.12,198.09,2.5246]
[1736385409890,2.5245,198.11,198.07,2.5248]
[1736385410892,2.94,198.12,198.02,12.26942003]
[1736385411391,2.94,198.12,198.09,2.5246]
[1736385412093,2.94,198.12,198.1,2.5245]
[1736385414588,1.5114,198.18,198.04,2.92]
[1736385414789,2.5238,198.16,198.12,2.5242]
[1736385415993,2.5241,198.14,198.1,2.5245]
[1736385418197,2.5239,198.16,198.11,2.5244]
[1736385418901,2.5238,198.16,198.12,2.5243]
[1736385419200,2.5238,198.16,198.05,16.78182003]
[1736385419499,5.4438,198.16,198.05,16.78182003]
[1736385419701,5.4438,198.16,198.08,2.5248]
[1736385419902,5.4438,198.16,198.05,16.78182003]
[1736385420601,5.4438,198.16,198.12,2.5242]
[1736385420798,2.5237,198.17,198.08,12.26942003]
[1736385421100,2.92,198.16,198.08,12.26942003]
[1736385421496,2.92,198.16,198.13,2.5241]
[1736385421696,2.92,198.16,198.08,12.26942003]
[1736385422100,5.4438,198.16,198.12,2.5243]
[1736385424907,2.92,198.16,198.14,2.524]
[1736385425098,7.82888245,198.17,198.14,2.524]
[1736385427298,10.72888245,198.19,198.15,2.5238]
[1736385428799,7.82888245,198.17,198.1,7.82888245]
[1736385429507,2.5238,198.16,198.1,7.82888245]
[1736385429702,7.82888245,198.17,198.1,7.82888245]
[1736385431204,10.35258245,198.17,198.13,2.5241]
[1736385431800,7.82888245,198.17,198.14,2.524]
[1736385432012,2.5236,198.18,198.14,2.524]
[1736385432401,2.9,198.19,198.17,2.5237]
[1736385433504,7.82888245,198.2,198.17,2.5237]
[1736385433806,10.72888245,198.2,198.15,2.5238]
[1736385434011,2.5234,198.19,198.15,2.5238]
[1736385434203,7.82888245,198.18,198.1,7.82888245]
[1736385434803,7.82888245,198.16,198.1,7.82888245]
[1736385435408,7.82888245,198.14,198.08,7.82888245]
[1736385435711,7.82888245,198.12,198.05,7.82888245]
[1736385436813,7.82888245,198.1,198.03,7.82888245]
[1736385437017,10.72888245,198.1,198.03,7.82888245]
[1736385437905,10.72888245,198.1,198.05,2.5252]
[1736385438302,10.72888245,198.1,198.03,7.82888245]
[1736385438714,10.72888245,198.1,198.06,2.5251]
[1736385438910,2.9,198.1,198.07,7.82888245]
[1736385439117,2.9,198.12,198.1,2.5244]
[1736385440618,2.9,198.12,198.09,7.82888245]
[1736385440805,7.82888245,198.17,198.11,7.82888245]
[1736385441006,2.9,198.17,198.13,7.82888245]
[1736385441207,2.9,198.17,198.16,2.5238]
[1736385442216,2.9,198.17,198.13,7.82888245]
[1736385442417,2.9,198.17,198.11,7.82888245]
[1736385444110,5.4237,198.17,198.12,2.5243]
[1736385445224,5.4237,198.17,198.13,2.5242]
[1736385447917,5.4237,198.17,198.1,7.82888245]
[1736385448119,13.25258245,198.17,198.1,7.82888245]
[1736385448521,2.5238,198.16,198.12,2.5242]
[1736385448815,10.72888245,198.17,198.05,2.92]
[1736385448816,7.82888245,198.15,198.08,7.82888245]
[1736385449017,2.5241,198.14,198.1,2.5245]
[1736385449421,7.82888245,198.15,198.08,7.82888245]
[1736385449720,10.35278245,198.15,198.11,2.5244]
[1736385450121,7.82888245,198.15,198.08,7.82888245]
[1736385450319,7.82888245,198.15,198.12,2.5243]
[1736385450824,10.35288245,198.15,198.1,2.5245]
[1736385451119,7.82888245,198.15,198.08,7.82888245]
[1736385451520,7.82888245,198.15,198.11,2.5243]
[1736385453326,13.25258245,198.17,198.12,2.5242]
[1736385453520,2.9,198.17,198.1,7.82888245]
[1736385454626,13.25258245,198.17,198.13,2.5241]
[1736385457626,10.35258245,198.17,198.13,2.5241]
[1736385457820,13.27258245,198.17,198.13,2.5241]
[1736385458323,13.27258245,198.17,198.14,2.524]
[1736385460123,13.27258245,198.17,198.13,2.5242]
[1736385461523,10.74888245,198.17,198.13,2.5242]
[1736385461825,2.5238,198.16,198.12,2.5243]
[1736385463328,2.5239,198.15,198.1,7.82888245]
[1736385463525,2.5239,198.15,198.11,2.5244]
[1736385464425,10.35278245,198.15,198.11,2.5244]
[1736385464622,7.82888245,198.15,198.05,1.5867]
[1736385464827,7.82888245,198.13,198.05,7.82888245]
[1736385465025,7.82888245,198.11,198.03,7.82888245]
[1736385466229,7.82888245,198.11,198.05,2.5251]
[1736385466930,2.5246,198.1,198.05,2.5251]
[1736385467130,2.9,198.12,198.05,7.82888245]
[1736385467326,2.9,198.12,198.1,2.5245]
[1736385467533,10.72888245,198.12,198.1,2.5245]
[1736385469926,10.72888245,198.12,198.09,2.5247]
[1736385470235,10.72888245,198.12,198.05,7.82888245]
[1736385470631,7.82888245,198.1,198.07,2.5249]
[1736385471229,7.82888245,198.1,198.02,50.68360094]
[1736385471230,10.72888245,198.12,198.09,2.5247]
[1736385471434,10.72888245,198.12,198.02,50.68360094]
[1736385471435,2.9,198.13,198.07,7.82888245]
[1736385471838,2.9,198.13,198.1,2.5245]
[1736385472435,2.9,198.13,198.07,7.82888245]
[1736385472737,7.82888245,198.12,198.05,7.82888245]
[1736385473734,2.5246,198.1,198.05,10.35398245]
[1736385473938,2.5246,198.1,198.05,7.82888245]
[1736385475235,2.5246,198.1,198.06,2.525]
[1736385476738,2.5249,198.08,198.03,7.82888245]
[1736385476939,2.9,198.07,198.03,7.82888245]
[1736385479144,2.9,198.07,198.05,2.5251]
[1736385481336,2.9,198.07,198.06,2.5251]
[1736385482247,2.9,198.07,198.04,2.5252]
[1736385482742,2.9,198.07,198.01,7.82888245]
[1736385482946,5.4251,198.07,198.03,2.5255]
[1736385484548,5.4251,198.07,198.04,2.5253]
[1736385485541,2.9,198.07,198.05,2.5251]
[1736385486257,7.82888245,198.08,198.05,2.5251]
[1736385486449,2.9,198.06,198.05,2.5251]
[1736385488343,7.82888245,198.1,198.06,2.525]
[1736385488344,2.9,198.08,198.06,2.525]
[1736385489447,2.9,198.09,198.06,2.525]
[1736385492350,2.9,198.11,198.07,7.82888245]
[1736385493249,2.9,198.11,198.08,2.5248]
[1736385493450,2.9,198.11,198.07,7.82888245]
[1736385494046,2.9,198.11,198.09,2.5246]
[1736385495555,2.5242,198.13,198.09,2.5246]
[1736385495851,2.5242,198.13,198.09,10.35348245]
[1736385496552,7.82888245,198.11,198.0,1.5881]
[1736385496851,7.82888245,198.09,198.02,7.82888245]
[1736385497049,2.9,198.08,198.06,2.525]
[1736385497247,2.9,198.08,198.04,7.82888245]
[1736385497952,2.9,198.09,198.04,7.82888245]
[1736385499058,2.9,198.09,198.07,2.5249]
[1736385500159,7.82888245,198.14,198.08,7.82888245]
[1736385500357,2.9,198.15,198.08,7.82888245]
[1736385501663,2.5241,198.14,198.1,7.82888245]
[1736385503658,2.5241,198.14,198.09,2.5246]
[1736385504056,2.5241,198.14,198.1,2.5245]
[1736385506666,2.9607,198.22,198.12,7.82888245]
[1736385506869,10.72888245,198.2,198.14,7.82888245]
[1736385507068,12.19408245,198.22,198.14,7.82888245]
[1736385507567,2.5233,198.2,198.15,2.5238]
[1736385507966,9.29408245,198.22,198.15,2.5238]
[1736385508166,2.9,198.21,198.15,2.5238]
[1736385508367,2.5238,198.16,198.12,2.5243]
[1736385508566,7.82888245,198.2,198.12,10.35318245]
[1736385509466,2.5237,198.17,198.12,10.35318245]
[1736385510074,10.35228245,198.2,198.15,2.5238]
[1736385510666,10.35228245,198.2,198.14,7.82888245]
[1736385510870,10.35228245,198.2,198.16,2.5238]
[1736385512586,2.5234,198.2,198.16,2.5238]
[1736385513977,5.4232,198.21,198.17,2.5237]
[1736385514374,2.5232,198.21,198.17,2.5237]
[1736385514673,2.5231,198.22,198.18,2.5235]
[1736385515069,2.5232,198.21,198.16,7.82888245]
[1736385515774,2.5233,198.2,198.16,2.5238]
[1736385527086,2.9,198.22,198.15,7.82888245]
[1736385527390,2.5232,198.21,198.17,2.5236]
[1736385527989,2.5231,198.22,198.15,7.82888245]
[1736385528488,2.5231,198.22,198.17,2.5236]
[1736385529183,2.5231,198.22,198.18,2.5234]
[1736385533689,2.5232,198.21,198.18,2.5234]
[1736385534388,2.5233,198.2,198.16,2.5237]
[1736385535196,2.5235,198.19,198.15,2.5239]
[1736385535892,7.82888245,198.2,198.13,2.5241]
[1736385535893,2.5237,198.17,198.13,2.5241]
[1736385536391,2.9,198.18,198.13,2.5241]
[1736385536592,2.9,198.18,198.12,7.82888245]
[1736385537492,2.5237,198.17,198.1,1.5338]
[1736385537794,10.72888245,198.18,198.11,7.82888245]
[1736385537989,2.5237,198.17,198.13,10.35298245]
[1736385538194,10.72888245,198.18,198.13,7.82888245]
[1736385539796,13.25248245,198.18,198.15,2.5239]
[1736385541089,2.9,198.18,198.16,2.5238]
[1736385541295,2.9,198.18,198.15,7.82888245]
[1736385542195,2.9,198.18,198.16,2.5237]
[1736385545701,2.5234,198.19,198.15,2.5239]
[1736385545998,5.4234,198.19,198.15,2.5239]
[1736385546199,7.82888245,198.18,198.1,1.5338]
[1736385546394,2.9,198.17,198.1,7.82888245]
[1736385547202,8.40747274,198.27,198.16,7.82888245]
[1736385547495,8.40747274,198.27,198.11,189.88868245]
[1736385547496,8.40747274,198.27,198.25,7.82888245]
[1736385547702,8.40747274,198.29,198.17,1.4496]
[1736385547898,8.40747274,198.29,198.24,7.82888245]
[1736385548101,10.92967274,198.29,198.24,7.82888245]
[1736385548399,7.82888245,198.32,198.24,7.82888245]
[1736385549295,63.35999642,198.3,198.25,2.5226]
[1736385549492,63.35999642,198.3,198.24,7.82888245]
[1736385549892,63.35999642,198.3,198.22,7.82888245]
[1736385549893,2.5222,198.29,198.22,7.82888245]
[1736385550094,10.72888245,198.28,198.22,7.82888245]
[1736385551302,10.72888245,198.28,198.2,7.82888245]
[1736385551508,2.5224,198.27,198.21,2.5231]
[1736385554106,2.9,198.26,198.21,2.5231]
[1736385555804,5.4225,198.26,198.21,2.5231]
[1736385558814,5.4225,198.26,198.22,2.523]
[1736385559710,7.82888245,198.27,198.23,2.5228]
[1736385559912,2.9,198.26,198.24,7.82888245]
[1736385560111,2.9,198.27,198.24,7.82888245]
[1736385560916,2.9,198.28,198.24,7.82888245]
[1736385561709,2.9,198.28,198.17,188.43828245]
[1736385561906,2.9,198.28,198.25,7.82888245]
[1736385563119,2.9,198.28,198.27,2.5224]
[1736385564315,60.83799642,198.3,198.25,7.82888245]
[1736385564515,2.9,198.29,198.25,7.82888245]
[1736385565216,60.83799642,198.3,198.28,2.5222]
[1736385565911,60.83799642,198.3,198.29,2.5221]
[1736385566117,60.83799642,198.3,198.26,7.82888245]
[1736385566614,60.83799642,198.3,198.27,2.5223]
[1736385567016,60.83799642,198.3,198.24,7.82888245]
[1736385567319,63.36009642,198.3,198.24,7.82888245]
[1736385568213,63.36009642,198.3,198.26,2.5225]
[1736385570725,60.83799642,198.3,198.27,2.5224]
[1736385572023,63.36009642,198.3,198.27,2.5224]
[1736385575028,63.36009642,198.3,198.26,10.35138245]
[1736385575625,7.82888245,198.29,198.23,7.82888245]
[1736385576729,10.35108245,198.29,198.25,2.5226]
[1736385581638,7.82888245,198.29,198.18,1.518]
[1736385581833,7.82888245,198.27,198.21,7.82888245]
[1736385582033,2.9,198.26,198.21,7.82888245]
[1736385583235,2.5227,198.25,198.21,10.35198245]
[1736385584835,2.9,198.26,198.21,7.82888245]
[1736385585039,5.4225,198.26,198.22,2.523]
[1736385588432,2.5227,198.25,198.21,10.35198245]
[1736385593538,2.5232,198.21,198.17,2.5236]
[1736385593841,2.5232,198.21,198.15,7.82888245]
[1736385593842,10.72888245,198.21,198.15,7.82888245]
[1736385594235,2.5233,198.2,198.17,2.5236]
[1736385597737,2.5233,198.2,198.16,2.5238]
[1736385598045,7.82888245,198.2,198.15,7.82888245]
[1736385598241,2.9,198.21,198.15,10.35278245]
[1736385598538,2.5236,198.18,198.15,10.35278245]
[1736385599839,7.82888245,198.18,198.14,2.524]
[1736385600044,2.5237,198.17,198.11,7.82888245]
[1736385600246,2.9,198.16,198.11,7.82888245]
[1736385600643,2.9,198.16,198.14,2.524]
[1736385600848,2.9,198.21,198.15,7.82888245]
[1736385601144,2.9,198.26,198.19,7.82888245]
[1736385601449,7.27141215,198.27,198.22,10.35178245]
[1736385601642,10.17141215,198.27,198.22,10.35178245]
[1736385602041,18.0002946,198.27,198.22,2.5229]
[1736385602442,10.17141215,198.27,198.23,2.5228]
[1736385602945,2.5225,198.26,198.21,7.82888245]
[1736385603143,7.64891215,198.27,198.21,7.82888245]
[1736385603445,18.0001946,198.27,198.2,2.5233]
[1736385603649,18.0001946,198.27,198.17,1.5241]
[1736385603842,7.82888245,198.25,198.17,1.5241]
[1736385604141,2.5227,198.25,198.2,2.5232]
[1736385604344,15.4777946,198.27,198.21,7.82888245]
[1736385604547,7.64891215,198.27,198.21,7.82888245]
[1736385605237,1.5117,198.29,198.23,7.82888245]
[1736385605443,60.83799642,198.3,198.23,7.82888245]
[1736385606844,7.82888245,198.29,198.23,7.82888245]
[1736385607046,7.82888245,198.29,198.21,7.82888245]
[1736385607646,7.82888245,198.29,198.23,7.82888245]
[1736385607846,7.82888245,198.29,198.25,2.5226]
[1736385608847,63.35999642,198.3,198.25,2.5226]
[1736385609146,71.18887887,198.3,198.25,2.5226]
[1736385610142,60.83799642,198.3,198.25,7.82888245]
[1736385611947,60.83799642,198.3,198.26,2.5224]
[1736385612943,60.83799642,198.3,198.25,7.82888245]
[1736385613151,60.83799642,198.3,198.27,7.82888245]
[1736385613349,60.83799642,198.3,198.29,7.82888245]
[1736385613647,60.83799642,198.3,198.29,10.35098245]
[1736385614248,60.83799642,198.3,198.29,2.5221]
[1736385615851,60.83799642,198.3,198.28,2.5223]
[1736385616755,68.66687887,198.3,198.23,2.5228]
[1736385616949,7.82888245,198.28,198.22,7.82888245]
[1736385618158,7.82888245,198.28,198.24,2.5227]
[1736385619061,10.35128245,198.28,198.24,2.5227]
[1736385619757,7.82888245,198.28,198.24,2.5227]
[1736385619959,71.56687887,198.3,198.23,7.82888245]
[1736385620356,71.56687887,198.3,198.25,2.5226]
[1736385620563,71.56687887,198.3,198.23,7.82888245]
[1736385621162,60.83799642,198.3,198.27,7.82888245]
[1736385621860,60.83799642,198.3,198.29,2.5221]
[1736385622263,60.83799642,198.3,198.29,10.35098245]
[1736385623767,58.43809642,198.3,198.29,10.35098245]
[1736385626770,50.22819642,198.3,198.29,10.35098245]
[1736385627265,42.51679642,198.3,198.29,10.35098245]
[1736385627470,4.36469642,198.3,198.29,10.35098245]
[1736385627663,9.642e-05,198.3,198.29,10.35098245]
[1736385627866,14.81550604,200.34,198.34,2.5214]
[1736385627867,2.9,198.4,198.34,2.5214]
[1736385628067,2.9,198.4,198.35,7.82888245]
[1736385628263,3.0461,198.48,198.35,7.82888245]
[1736385628468,7.82888245,198.42,198.35,7.82888245]
[1736385628668,13.24948245,198.42,198.35,7.82888245]
[1736385629175,1.5006,198.48,198.37,7.82888245]
[1736385629365,2.5201,198.45,198.4,7.82888245]
[1736385630768,7.82888245,198.43,198.3,236.32566523]
[1736385630974,7.82888245,198.43,198.35,7.82888245]
[1736385631475,2.5207,198.41,198.35,10.35018245]
[1736385631676,2.9,198.42,198.35,7.82888245]
[1736385631869,7.82888245,198.39,198.33,7.82888245]
[1736385632177,7.82888245,198.37,198.31,7.82888245]
[1736385632368,10.72888245,198.37,198.31,7.82888245]
[1736385632563,2.5215,198.35,198.31,7.82888245]
[1736385636571,10.72888245,198.37,198.3,50.31108278]
[1736385636875,2.5216,198.33,198.3,55.61796523]
[1736385639177,2.5213,198.36,198.32,10.35068245]
[1736385639477,2.5213,198.36,198.3,47.78908278]
[1736385639478,2.9,198.38,198.34,7.82888245]
[1736385639678,2.9,198.39,198.34,7.82888245]
[1736385640275,7.82888245,198.41,198.34,7.82888245]
[1736385640479,2.9,198.4,198.34,7.82888245]
[1736385640875,2.5209,198.39,198.34,10.35038245]
[1736385641871,2.5208,198.4,198.36,2.5212]
[1736385642077,10.72888245,198.41,198.36,10.35008245]
[1736385642271,2.9,198.41,198.36,10.35008245]
[1736385642978,2.5206,198.41,198.36,10.35008245]
[1736385644580,2.9,198.42,198.36,10.35008245]
[1736385644781,2.5209,198.4,198.35,10.35028245]
[1736385645079,2.5209,198.4,198.35,7.82888245]
[1736385645481,2.5209,198.4,198.36,2.5212]
[1736385645875,2.5206,198.41,198.35,7.82888245]
[1736385647181,2.5206,198.41,198.37,2.5211]
[1736385647779,2.5206,198.41,198.35,10.35018245]
[1736385647980,2.5208,198.4,198.35,10.35018245]
[1736385648177,7.82888245,198.43,198.35,7.82888245]
[1736385648377,2.5208,198.4,198.36,2.5212]
[1736385649682,2.5208,198.4,198.35,10.35018245]
[1736385650080,2.5208,198.4,198.35,7.82888245]
[1736385650975,2.5209,198.39,198.35,7.82888245]
[1736385651182,7.82888245,198.41,198.33,7.82888245]
[1736385651479,2.521,198.39,198.35,7.82888245]
[1736385652381,2.521,198.38,198.35,7.82888245]
[1736385655381,2.521,198.38,198.35,10.35028245]
[1736385656780,2.5209,198.39,198.35,10.35028245]
[1736385658780,2.5209,198.39,198.35,2.5214]
[1736385658979,2.5209,198.39,198.35,10.35028245]
[1736385661075,2.9,198.42,198.37,7.82888245]
[1736385662384,7.82888245,198.41,198.33,7.82888245]
[1736385662687,2.5215,198.34,198.28,2.5222]
[1736385662893,2.9,198.34,198.24,1.4679]
[1736385663181,2.9,198.34,198.3,7.82888245]
[1736385663483,2.9,198.34,198.24,1.4679]
[1736385663484,2.9,198.34,198.33,2.5216]
[1736385664982,2.9,198.36,198.33,2.5216]
[1736385666184,2.9,198.36,198.31,7.82888245]
[1736385666684,2.9,198.36,198.24,1.4679]
[1736385666883,2.5216,198.34,198.29,7.82888245]
[1736385667479,2.5216,198.34,198.3,2.522]
[1736385667889,2.5214,198.35,198.29,7.82888245]
[1736385668387,2.5214,198.35,198.31,2.5218]
[1736385668984,5.4213,198.36,198.32,2.5217]
[1736385669383,2.9,198.36,198.31,7.82888245]
[1736385670386,1.5658,198.4,198.33,7.82888245]
[1736385670587,2.9,198.39,198.33,7.82888245]
[1736385671880,10.34988245,198.38,198.34,2.5215]
[1736385672187,10.34988245,198.38,198.33,7.82888245]
[1736385672188,7.82888245,198.36,198.31,7.82888245]
[1736385672593,7.82888245,198.38,198.31,7.82888245]
[1736385673185,7.82888245,198.38,198.34,2.5214]
[1736385673992,10.34998245,198.38,198.34,2.5214]
[1736385675994,2.5211,198.38,198.34,2.5214]
[1736385676293,2.5211,198.38,198.31,7.82888245]
[1736385676493,10.34998245,198.38,198.33,2.5216]
[1736385676892,7.82888245,198.38,198.33,2.5216]
[1736385677087,2.5212,198.37,198.33,2.5216]
[1736385678190,2.9,198.36,198.33,2.5216]
[1736385678591,2.9,198.36,198.31,7.82888245]
[1736385678896,2.9,198.36,198.34,2.5215]
[1736385679689,2.9,198.38,198.35,2.5213]
[1736385680495,2.9,198.38,198.33,7.82888245]
[1736385680496,2.9,198.38,198.36,2.5212]
[1736385682899,2.5209,198.39,198.36,2.5212]
[1736385683195,2.9,198.38,198.36,2.5212]
[1736385689301,10.34968245,198.4,198.36,2.5212]
[1736385689508,2.9,198.39,198.36,2.5212]
[1736385692609,2.9,198.39,198.33,7.82888245]
[1736385692810,5.4208,198.4,198.37,2.5211]
[1736385693305,3.1022,198.45,198.35,7.82888245]
[1736385693508,2.9,198.44,198.41,10.34948245]
[1736385693710,7.82888245,198.48,198.34,1.5439]
[1736385693904,10.34918245,198.44,198.39,2.5207]
[1736385694208,7.82888245,198.44,198.36,7.82888245]
[1736385694410,10.34918245,198.44,198.4,2.5207]
[1736385694613,7.82888245,198.44,198.4,2.5207]
[1736385694907,2.5204,198.43,198.39,2.5209]
[1736385695106,2.9,198.42,198.39,2.5209]
[1736385697918,2.9,198.42,198.41,2.5206]
[1736385699422,2.5201,198.45,198.41,2.5206]
[1736385699624,2.9,198.44,198.41,2.5206]
[1736385700625,2.9,198.43,198.41,2.5206]
[1736385700822,7.82888245,198.46,198.34,1.5439]
[1736385700823,2.9,198.44,198.4,7.82888245]
[1736385701322,2.9,198.44,198.42,2.5204]
[1736385701522,2.9,198.45,198.42,2.5204]
[1736385702323,10.34888245,198.46,198.42,2.5204]
[1736385702625,2.9,198.46,198.44,2.5202]
[1736385702825,2.9,198.46,198.4,7.82888245]
[1736385703024,2.9,198.46,198.41,2.5205]
[1736385703025,5.4201,198.46,198.41,2.5205]
[1736385703220,13.24898245,198.46,198.41,2.5205]
[1736385703421,10.72888245,198.46,198.41,2.5205]
[1736385704028,2.5202,198.45,198.41,2.5205]
[1736385706529,2.5202,198.44,198.41,2.5205]
[1736385707429,2.5201,198.45,198.41,2.5205]
[1736385708230,5.4201,198.45,198.41,2.5205]
[1736385709431,2.5201,198.45,198.41,2.5205]
[1736385709630,5.4201,198.45,198.41,2.5205]
[1736385712234,5.4201,198.45,198.42,2.5205]
[1736385713129,2.9,198.45,198.42,2.5205]